fUSD/lending_fUSD_20250614
["ID","MTS","AMOUNT","RATE_DAILY","PERIOD"]
[365772530,1749904240720,-19337.12372966,0.00016999,2]
[365772531,1749904240730,-352294.93326162,0.00017,2]
[365772532,1749904241901,230.0,0.00015234,2]
[365772533,1749904243110,-95132.22035501,0.00017,2]
[365772536,1749904246617,-1222.88200002,0.000169,2]
[365772537,1749904352481,8770.42069967,0.00015821,2]
[365772538,1749904352504,10000.0,0.00015821,2]
[365772539,1749904352524,1514.16930033,0.00015821,2]
[365772540,1749904353363,1181.58,0.00025,120]
[365772541,1749904393539,477.410974,0.00024853,120]
[365772542,1749904403981,500.0,0.00024999,120]
[365772543,1749904424748,154.91,0.00013699,2]
[365772545,1749904514000,50000.0,0.00025,120]
[365772546,1749904639512,556.54,0.00014059,2]
[365772547,1749904645052,168.0,0.00015861,2]
[365772548,1749904651640,168.0,0.00014952,2]
[365772550,1749904768059,313.61,0.00015809,2]
[365772551,1749904820229,400.0,0.00024657,120]
[365772553,1749904868295,168.0,0.00014911,2]
[365772554,1749904937986,201.0,0.00015238,2]
[365772555,1749904938264,201.0,0.00015906,2]
[365772556,1749904953320,150.0,0.00015713,7]
[365772557,1749904991405,203.0,0.00015238,2]
[365772558,1749905006887,500.0,0.00024999,120]
[365772559,1749905029033,301.36,0.00015736,2]
[365772560,1749905030455,153.81372568,0.00015943,2]
[365772561,1749905041594,1000.0,0.00015723,2]
[365772584,1749905283715,186.0,0.00016,2]
[365772585,1749905291782,201.0,0.00015575,2]
[365772586,1749905298568,186.0,0.00016,2]
[365772589,1749905351699,171.0,0.00016,2]
[365772590,1749905354707,171.0,0.00016,2]
[365772591,1749905355557,5490.85590514,0.00025,120]
[365772592,1749905355924,171.0,0.00016,2]
[365772593,1749905359559,171.0,0.00016,3]
[365772594,1749905360410,171.0,0.00016,3]
[365772595,1749905362455,171.0,0.00016,3]
[365772596,1749905369950,153.81372567,0.00015943,2]
[365772597,1749905380944,173.33,0.00016,2]
[365772639,1749905432923,-226.52,0.00016007,2]
[365772641,1749905432933,-300.0,0.00016043,2]
[365772643,1749905432942,-426.27788225,0.00016043,2]
[365772645,1749905432953,-504.92396992,0.00016043,2]
[365772647,1749905432964,-268.79814783,0.00016043,2]
[365772649,1749905432973,-300.0,0.00016043,2]
[365772651,1749905432984,-451.85180653,0.00016044,2]
[365772654,1749905432995,-1080.56501414,0.00016044,2]
[365772657,1749905433014,-10339.48317933,0.00016044,2]
[365772659,1749905433023,-151.0,0.00016148,2]
[365772661,1749905433032,-207.4,0.00016148,2]
[365772663,1749905433042,-550.0,0.00016163,2]
[365772665,1749905433052,-600.0,0.00016164,2]
[365772666,1749905433062,-500.0,0.00016164,2]
[365772668,1749905433072,-600.0,0.00016164,4]
[365772670,1749905433082,-245.48,0.00016164,2]
[365772672,1749905433091,-252.48,0.00016164,2]
[365772675,1749905433100,-251.46,0.00016164,2]
[365772678,1749905433110,-250.11,0.00016164,2]
[365772681,1749905433119,-253.23,0.00016164,2]
[365772684,1749905433130,-248.6,0.00016164,2]
[365772686,1749905433140,-246.93,0.00016164,2]
[365772688,1749905433150,-253.9,0.00016164,2]
[365772690,1749905433160,-250.06,0.00016164,2]
[365772693,1749905433170,-250.93,0.00016164,2]
[365772695,1749905433181,-245.99,0.00016164,2]
[365772697,1749905433192,-253.74,0.00016164,2]
[365772699,1749905433201,-246.98,0.00016164,2]
[365772702,1749905433211,-251.02,0.00016164,2]
[365772704,1749905433221,-254.38,0.00016164,2]
[365772706,1749905433232,-253.81,0.00016164,2]
[365772708,1749905433242,-250.63,0.00016164,2]
[365772710,1749905433251,-245.49,0.00016164,2]
[365772712,1749905433261,-246.99,0.00016164,2]
[365772713,1749905433271,-246.81,0.00016164,2]
[365772752,1749905433636,-251.45,0.00016164,2]
[365772754,1749905433649,-252.82,0.00016164,2]
[365772756,1749905433658,-250.79,0.00016164,2]
[365772758,1749905433668,-252.87,0.00016164,2]
[365772760,1749905433677,-252.59,0.00016164,2]
[365772762,1749905433689,-166.2,0.00016216,2]
[365772764,1749905433700,-201.0,0.00016258,2]
[365772766,1749905433709,-556.54,0.00016323,2]
[365772768,1749905433719,-168.0,0.00016372,2]
[365772770,1749905433729,-168.0,0.00016375,2]
[365772772,1749905433739,-168.0,0.00016398,2]
[365772774,1749905433748,-152.0,0.0001643,3]
[365772776,1749905433757,-150.0,0.000165,2]
[365772778,1749905433768,-150.0,0.000165,2]
[365772780,1749905433778,-370.64570769,0.00016603,2]
[365772782,1749905433787,-852.136089,0.0001666,2]
[365772784,1749905433796,-150.6,0.000167,2]
[365772786,1749905433805,-391.0,0.00016726,2]
[365772788,1749905433814,-150.0,0.00016728,2]
[365772790,1749905433823,-150.0,0.00016732,2]
[365772792,1749905433832,-150.0,0.00016734,2]
[365772794,1749905433842,-150.0,0.00016749,2]
[365772796,1749905433851,-150.0,0.00016753,2]
[365772798,1749905433861,-150.0,0.00016754,2]
[365772800,1749905433870,-150.0,0.00016755,2]
[365772802,1749905433879,-150.0,0.00016756,2]
[365772804,1749905433888,-150.0,0.00016765,2]
[365772806,1749905433897,-150.0,0.00016766,2]
[365772808,1749905433906,-150.0,0.00016768,2]
[365772809,1749905433916,-1299.0,0.00016769,2]
[365772812,1749905433925,-150.0,0.00016775,2]
[365772814,1749905433935,-150.0,0.00016777,2]
[365772816,1749905433944,-600.0,0.0001678,4]
[365772817,1749905433953,-150.0,0.0001678,2]
[365772820,1749905433965,-150.0,0.00016791,2]
[365772822,1749905433974,-2500.0,0.00016794,2]
[365772824,1749905433984,-1000.0,0.00016794,2]
[365772825,1749905433993,-555.18606138,0.00016794,2]
[365772827,1749905434003,-153.81372567,0.00016794,2]
[365772829,1749905434012,-150.0,0.0001681,2]
[365772831,1749905434022,-150.0,0.00016817,2]
[365772833,1749905434031,-1000.0,0.00016818,2]
[365772835,1749905434041,-150.0,0.00016837,2]
[365772837,1749905434051,-152.0,0.00016841,4]
[365772839,1749905434060,-150.0,0.00016842,2]
[365772841,1749905434069,-2376.2987,0.00016849,2]
[365772843,1749905434079,-150.0,0.00016856,2]
[365772845,1749905434088,-150.0,0.00016863,2]
[365772847,1749905434097,-200.0,0.00016864,2]
[365772849,1749905434107,-150.0,0.00016872,2]
[365772851,1749905434116,-150.0,0.00016874,2]
[365772853,1749905434125,-158.99343156,0.0001688,2]
[365772855,1749905434138,-164.8222364,0.0001688,2]
[365772857,1749905434148,-160.83980094,0.0001688,2]
[365772859,1749905434157,-43.58328885,0.00016887,2]
[365772862,1749905434170,-106.41671115,0.00016887,2]
[365772864,1749905434180,-150.0,0.00016887,2]
[365772865,1749905434189,-150.0,0.00016888,2]
[365772867,1749905434199,-150.0,0.0001689,2]
[365772869,1749905434208,-140.88049271,0.00016894,2]
[365772871,1749905434220,-359.11950729,0.00016894,2]
[365772874,1749905434229,-2918.66189299,0.00016894,2]
[365772876,1749905434241,-1700.95360954,0.00016894,2]
[365772878,1749905434261,-2417.6408143,0.00016894,2]
[365772880,1749905434273,-11554.84228317,0.00016894,2]
[365772882,1749905434283,-187808.0834,0.00016894,2]
[365772884,1749905434293,-1000.0,0.00016894,2]
[365772886,1749905434302,-168.0,0.00016895,2]
[365772888,1749905434311,-150.0,0.00016896,2]
[365772890,1749905434321,-1683.3002,0.000169,2]
[365772892,1749905434330,-529.63823406,0.000169,2]
[365772894,1749905434339,-163.78295553,0.000169,2]
[365772896,1749905434348,-153.64068744,0.000169,2]
[365772898,1749905434358,-994.91912905,0.000169,2]
[365772900,1749905434368,-252.84504576,0.000169,2]
[365772902,1749905434377,-150.0,0.00016903,2]
[365772904,1749905434386,-150.0,0.00016911,2]
[365772906,1749905434395,-150.0,0.00016912,2]
[365772908,1749905434404,-150.0,0.00016914,2]
[365772910,1749905434413,-150.0,0.00016918,2]
[365772912,1749905434422,-150.0,0.00016925,2]
[365772914,1749905434431,-680.2076358,0.00016927,2]
[365772915,1749905434441,-150.0,0.00016929,2]
[365772917,1749905434450,-489.0,0.0001693,2]
[365772919,1749905434459,-150.0,0.00016932,2]
[365772921,1749905434469,-150.0,0.00016934,2]
[365772923,1749905434477,-150.0,0.00016936,2]
[365772925,1749905434487,-1000.0,0.00016936,2]
[365772927,1749905434497,-201.0,0.00016941,3]
[365772930,1749905434506,-370.761,0.00016943,2]
[365772932,1749905434516,-150.0,0.00016944,2]
[365772933,1749905434525,-150.0,0.00016946,2]
[365772936,1749905434534,-150.0,0.00016953,2]
[365772937,1749905434544,-150.0,0.00016957,2]
[365772939,1749905434553,-150.0,0.00016962,2]
[365772941,1749905434562,-150.0,0.00016968,2]
[365772943,1749905434571,-500.0,0.00016973,2]
[365772945,1749905434580,-500.0,0.00016973,2]
[365772947,1749905434590,-500.0,0.00016973,2]
[365772949,1749905434598,-500.91731703,0.00016973,2]
[365772951,1749905434607,-500.0,0.00016973,2]
[365772953,1749905434616,-500.0,0.00016973,2]
[365772955,1749905434625,-205.27955896,0.00016973,2]
[365772957,1749905434634,-500.0,0.00016973,2]
[365772959,1749905434643,-502.17725983,0.00016973,2]
[365772961,1749905434653,-500.0,0.00016973,2]
[365772963,1749905434662,-500.0,0.00016973,2]
[365772965,1749905434671,-150.0,0.00016975,2]
[365772967,1749905434680,-20844.57290437,0.0001698,2]
[365773295,1749905438045,-371.74726613,0.00016972,2]
[365773297,1749905438054,-306.27168636,0.00016972,2]
[365773299,1749905438063,-23852.10761923,0.0001698,2]
[365773301,1749905438074,-1019.78232948,0.0001698,2]
[365773311,1749905438155,-2325.32777579,0.0001698,2]
[365773323,1749905438265,-101958.20937113,0.0001698,2]
[365773325,1749905438275,-3000.0,0.0001698,2]
[365773327,1749905438284,-150.9,0.0001699,2]
[365773329,1749905438294,-150.9,0.0001699,2]
[365773331,1749905438302,-150.9,0.0001699,2]
[365773333,1749905438312,-150.9,0.0001699,2]
[365773335,1749905438321,-150.9,0.0001699,2]
[365773337,1749905438331,-150.9,0.0001699,2]
[365773339,1749905438339,-150.9,0.0001699,2]
[365773341,1749905438349,-150.9,0.0001699,2]
[365773343,1749905438358,-192.18207134,0.0001699,2]
[365773345,1749905438367,-500.0,0.0001699,2]
[365773347,1749905438377,-150.0,0.0001699,2]
[365773349,1749905438386,-200.0,0.0001699,2]
[365773351,1749905438396,-150.0,0.0001699,2]
[365773353,1749905438406,-150.0,0.0001699,2]
[365773355,1749905438415,-150.9,0.0001699,2]
[365773357,1749905438424,-150.9,0.0001699,2]
[365773359,1749905438433,-150.9,0.0001699,2]
[365773361,1749905438442,-150.9,0.0001699,2]
[365773363,1749905438452,-150.9,0.0001699,2]
[365773365,1749905438461,-150.9,0.0001699,2]
[365773367,1749905438470,-150.9,0.0001699,2]
[365773369,1749905438480,-150.9,0.0001699,2]
[365773371,1749905438490,-150.9,0.0001699,2]
[365773373,1749905438500,-150.9,0.0001699,2]
[365773375,1749905438509,-150.9,0.0001699,2]
[365773377,1749905438519,-150.0,0.00016992,2]
[365773379,1749905438528,-42276.1303793,0.00016994,2]
[365773381,1749905438537,-18497.2786862,0.00016994,2]
[365773383,1749905438546,-10668.2591221,0.00016994,2]
[365773385,1749905438555,-7659.0707014,0.00016994,2]
[365773387,1749905438565,-150.0,0.00016998,2]
[365773389,1749905438574,-174.12,0.00016999,2]
[365773391,1749905438583,-1000.0,0.00016999,2]
[365773393,1749905438592,-612.56596491,0.00016999,2]
[365773395,1749905438602,-194.55739823,0.00016999,2]
[365773397,1749905438611,-500.0,0.00016999,2]
[365773399,1749905438620,-294.13762622,0.00016999,2]
[365773401,1749905438629,-500.0,0.00016999,2]
[365773403,1749905438639,-381.15906677,0.00016999,2]
[365773405,1749905438648,-501.0,0.00016999,2]
[365773407,1749905438658,-1365.62,0.00017,2]
[365773409,1749905438668,-1365.62,0.00017,2]
[365773411,1749905438677,-1365.62,0.00017,2]
[365773413,1749905438689,-1365.62,0.00017,2]
[365773415,1749905438700,-11871.74961244,0.00017,2]
[365773576,1749905440290,-633927.66952121,0.00017,2]
[365773583,1749905440346,-2899.31244387,0.00017,2]
[365773585,1749905440357,-461.80118994,0.00017,2]
[365773957,1749905444312,-800.3323698,0.00016999,2]
[365773959,1749905444324,-20037.49135986,0.00016999,2]
[365773961,1749905444333,-86862.50864012,0.00017,2]
[365773964,1749905444347,-14955.71572239,0.00017,2]
[365773966,1749905444360,-3019.96756858,0.00017,2]
[365773968,1749905444371,-4200.04995,0.00017,2]
[365773970,1749905444383,-7635.5071906,0.00017,2]
[365773973,1749905444394,-4772.88950961,0.00017,2]
[365773975,1749905444405,-305.01016309,0.00017,2]
[365773977,1749905444417,-720.0899999,0.00017,2]
[365773979,1749905444427,-300.9646024,0.00017,2]
[365773982,1749905444442,-2039.30178093,0.00017,2]
[365774152,1749905446144,-545.0,0.00017,2]
[365774159,1749905446199,-1661.1079447,0.00017,2]
[365774161,1749905446210,-712.682,0.00017,2]
[365774163,1749905446221,-1704.76,0.00017,2]
[365774174,1749905446310,-30576.29283951,0.00017,2]
[365774176,1749905446321,-246862.00179239,0.00017,2]
[365774636,1749905455723,168.0,0.00014832,2]
[365774637,1749905457904,168.0,0.00014744,2]
[365774638,1749905486754,852.3,0.00015725,2]
[365774651,1749905567641,154.91,0.00013699,2]
[365774657,1749905602871,500.0,0.00024999,120]
[365774663,1749905638678,262.12368052,0.00015912,2]
[365774664,1749905638701,1477.24324832,0.00015912,2]
[365774665,1749905638723,5440.26307116,0.00015912,2]
[365774667,1749905653841,4559.73692884,0.00015917,2]
[365774668,1749905653861,10000.0,0.00015917,2]
[365774669,1749905653881,2751.94307116,0.00015917,2]
[365774672,1749905663870,-231.85590464,0.00016041,2]
[365774673,1749905666714,563.0,0.00015666,2]
[365774674,1749905669209,-266.243799,0.00016041,2]
[365774676,1749905674068,563.0,0.00015891,2]
[365774677,1749905674345,-64.90029636,0.00016041,2]
[365774680,1749905685494,249.05,0.00015914,2]
[365774691,1749905759297,529.85,0.00013978,2]
[365774693,1749905800930,400.0,0.00024657,120]
[365774694,1749905844101,312.26,0.00015878,2]
[365774699,1749905887700,168.0,0.00015697,2]
[365774700,1749905924295,4862.89692884,0.00015868,2]
[365774701,1749905924315,2021.38307116,0.00015868,2]
[365774702,1749905946931,150.0,0.00015869,7]
[365774703,1749906006687,150.68,0.00015878,2]
[365774704,1749906012645,201.0,0.00015625,2]
[365774705,1749906026729,150.0,0.00015882,2]
[365774707,1749906065589,-2030.31,0.000161,2]
[365774708,1749906065611,-168.0,0.000161,2]
[365774709,1749906065634,-1901.69,0.00016121,2]
[365774710,1749906079780,1000.0,0.00015893,2]
[365774711,1749906205788,500.0,0.00024999,120]
[365774712,1749906219862,162.67,0.00015888,2]
[365774713,1749906222010,202.0,0.00015625,2]
[365774714,1749906248353,5512.08462,7.945e-05,2]
[365774715,1749906251980,200.0,0.00015625,2]
[365774716,1749906260475,5511.0,0.00025,120]
[365774717,1749906263233,250.18230884,0.00015899,2]
[365774718,1749906263253,286.84769116,0.00015899,2]
[365774720,1749906330109,3000.0,0.00025,120]
[365774721,1749906364017,-153.58,0.0001604,2]
[365774722,1749906365923,-325.41520263,0.0001604,2]
[365774723,1749906369446,-288.37076245,0.0001604,2]
[365774724,1749906373045,201.0,0.00015329,2]
[365774725,1749906374366,-201.0,0.00016038,2]
[365774726,1749906374389,-19.04675857,0.0001604,2]
[365774727,1749906377418,-172.36551022,0.0001604,2]
[365774728,1749906379318,-161.62923755,0.0001604,2]
[365774729,1749906384363,-222.86778764,0.0001604,2]
[365774730,1749906387502,-335.03448978,0.0001604,2]
[365774732,1749906390209,-12.02149016,0.0001604,2]
[365774733,1749906397494,345.9693,0.000249,120]
[365774736,1749906425051,346.33,0.000249,120]
[365774738,1749906437796,190.25,0.00015902,2]
[365774739,1749906438002,190.25,0.00015982,2]
[365774740,1749906440091,2227.09,0.00015902,2]
[365774762,1749906510646,-288.36850984,0.00016064,2]
[365774763,1749906512649,-314.79804546,0.00016064,2]
[365774764,1749906518689,-295.38195454,0.00016064,2]
[365774767,1749906520053,-327.5135606,0.00016064,2]
[365774768,1749906524995,-172.8,0.00016064,2]
[365774769,1749906527664,-144.0037962,0.00016064,2]
[365774772,1749906555930,711.27,0.00015902,2]
[365774773,1749906573062,150.0,0.00016001,2]
[365774774,1749906585995,1024.49,0.00015872,2]
[365774775,1749906596924,1852.42,0.00015872,2]
[365774776,1749906615011,3166.38230884,0.00015877,2]
[365774777,1749906615034,10000.0,0.00015877,2]
[365774778,1749906615059,10000.0,0.00015877,2]
[365774779,1749906615082,733.61769116,0.00015877,2]
[365774780,1749906630623,400.0,0.00024657,120]
[365774782,1749906632617,-600.0,0.00016164,2]
[365774783,1749906632627,-500.0,0.00016164,2]
[365774784,1749906632636,-529.85,0.00016242,2]
[365774785,1749906632646,-305.26,0.00016593,2]
[365774786,1749906632655,-89.07470446,0.00016646,2]
[365774787,1749906632666,-473.92529554,0.00016646,2]
[365774788,1749906632675,-207.4,0.00016649,2]
[365774789,1749906632685,-151.0,0.00016649,2]
[365774790,1749906632693,-234.79991464,0.0001666,2]
[365774800,1749906632799,-510.81916336,0.0001666,2]
[365774802,1749906632809,-168.0,0.00016679,2]
[365774804,1749906632818,-150.0,0.00016724,2]
[365774806,1749906632828,-150.0,0.00016729,2]
[365774808,1749906632837,-201.0,0.00016747,3]
[365774810,1749906632847,-680.20763581,0.00016751,2]
[365774812,1749906632856,-150.0,0.00016756,2]
[365774814,1749906632865,-1200.0,0.00016756,2]
[365774816,1749906632875,-483.87490204,0.00016757,2]
[365774818,1749906632885,-150.0,0.00016764,2]
[365774820,1749906632894,-150.0,0.00016785,2]
[365774822,1749906632903,-879.9742,0.00016794,2]
[365774824,1749906632913,-300.0,0.00016794,2]
[365774826,1749906632923,-150.0,0.00016795,2]
[365774828,1749906632932,-150.0,0.000168,2]
[365774830,1749906632941,-150.0,0.000168,2]
[365774832,1749906632950,-150.0,0.000168,2]
[365774834,1749906632960,-150.0,0.000168,2]
[365774836,1749906632969,-150.23,0.000168,2]
[365774838,1749906632978,-150.0,0.00016802,2]
[365774840,1749906632987,-150.0,0.0001682,2]
[365774842,1749906632996,-1000.0,0.00016824,2]
[365774844,1749906633005,-150.0,0.00016832,2]
[365774845,1749906633015,-150.0,0.00016859,2]
[365774847,1749906633024,-200.0,0.00016864,2]
[365774848,1749906633033,-170.49396156,0.00016889,2]
[365774850,1749906633043,-1685.3671,0.0001689,2]
[365774852,1749906633053,-160.83980094,0.00016895,2]
[365774854,1749906633063,-150.0,0.00016896,2]
[365774856,1749906633072,-163.76183022,0.00016899,2]
[365774858,1749906633082,-36866.5342,0.00016899,2]
[365774860,1749906633092,-453.97562922,0.000169,2]
[365774862,1749906633101,-155.11114672,0.000169,2]
[365774864,1749906633111,-153.64068747,0.000169,2]
[365774866,1749906633120,-453.0140403,0.000169,2]
[365774868,1749906633130,-663.27941938,0.000169,2]
[365774870,1749906633139,-574.53133692,0.00016922,2]
[365775360,1749906638266,-158.99343151,0.00016898,2]
[365775362,1749906638275,-8711.89866308,0.00016922,2]
[365775364,1749906638285,-150.99,0.00016922,2]
[365775366,1749906638295,-309.25,0.00016922,2]
[365775368,1749906638304,-802.0,0.00016923,2]
[365775370,1749906638314,-150.0,0.00016934,2]
[365775372,1749906638325,-150.0,0.00016935,2]
[365775374,1749906638334,-155.0,0.00016947,2]
[365775376,1749906638343,-1160.0,0.00016947,2]
[365775378,1749906638352,-150.0,0.00016952,2]
[365775380,1749906638362,-573.93641991,0.00016953,2]
[365775382,1749906638374,-193.65858009,0.00016953,2]
[365775384,1749906638383,-150.0,0.00016962,2]
[365775386,1749906638392,-150.0,0.00016963,2]
[365775388,1749906638402,-470.58509326,0.00016973,2]
[365775390,1749906638411,-500.0,0.00016973,2]
[365775392,1749906638420,-373.77566029,0.00016973,2]
[365775395,1749906638436,-126.22433971,0.00016973,2]
[365775397,1749906638445,-507.56392517,0.00016973,2]
[365775399,1749906638456,-500.0,0.00016973,2]
[365775401,1749906638465,-503.25704212,0.00016973,2]
[365775403,1749906638475,-162.05703542,0.00016973,2]
[365775405,1749906638484,-500.0,0.00016973,2]
[365775407,1749906638493,-500.0,0.00016973,2]
[365775409,1749906638503,-458.35432163,0.00016973,2]
[365775411,1749906638512,-500.0,0.00016973,2]
[365775413,1749906638521,-350.0,0.00016983,2]
[365775415,1749906638530,-150.93,0.00016989,2]
[365775417,1749906638539,-1036.74605988,0.0001699,2]
[365775419,1749906638551,-1347.47722957,0.0001699,2]
[365775606,1749906640423,-102008.38212188,0.0001699,2]
[365775608,1749906640433,-23295.41878343,0.0001699,2]
[365775610,1749906640442,-150.0,0.0001699,2]
[365775612,1749906640452,-150.0,0.0001699,2]
[365775614,1749906640462,-150.0,0.0001699,2]
[365775616,1749906640471,-250.0,0.0001699,2]
[365775618,1749906640480,-500.0,0.0001699,2]
[365775620,1749906640490,-150.0,0.0001699,2]
[365775622,1749906640500,-150.0,0.0001699,2]
[365775624,1749906640509,-150.0,0.00016991,2]
[365775625,1749906640518,-597.63913438,0.00016994,2]
[365775735,1749906641634,-5841.65936306,0.00016994,2]
[365775737,1749906641647,-1108.32886926,0.00016994,2]
[365775739,1749906641656,-3181.0048959,0.00016995,2]
[365775742,1749906641672,-289.3721521,0.00016995,2]
[365775744,1749906641682,-4410.29067702,0.00016995,2]
[365775746,1749906641692,-5362.203,0.00016995,2]
[365775834,1749906642513,-49711.21519198,0.00016995,2]
[365775837,1749906642523,-19081.251399,0.00016995,2]
[365775839,1749906642532,-92938.3719999,0.00016995,2]
[365775840,1749906642541,-10530.88610843,0.00016999,2]
[365775842,1749906642550,-166.86,0.00016999,2]
[365775845,1749906642560,-428.79617544,0.00016999,2]
[365775846,1749906642569,-500.0,0.00016999,2]
[365775849,1749906642579,-205.89633835,0.00016999,2]
[365775851,1749906642589,-500.0,0.00016999,2]
[365775852,1749906642599,-201.36594186,0.00016999,2]
[365775855,1749906642608,-221.31788678,0.00016999,2]
[365775856,1749906642617,-500.0,0.00016999,2]
[365775858,1749906642626,-10418.91186483,0.00016999,2]
[365775860,1749906642636,-474913.40376155,0.00016999,2]
[365775863,1749906642647,-3643.220499,0.00016999,2]
[365775872,1749906642729,-151.0,0.00016308,2]
[365775928,1749906643321,-158.99343151,0.00016917,2]
[365775930,1749906643331,-214.07782934,0.00016999,2]
[365775947,1749906643483,-7290.4830715,0.00016999,2]
[365775949,1749906643495,-5729.42378734,0.00016999,2]
[365776242,1749906646442,-886.025,0.00016999,2]
[365776245,1749906646454,-2310.05808,0.00016999,2]
[365776508,1749906649402,-166.66760136,0.00016164,2]
[365777140,1749906694129,-152.0,0.00016164,2]
[365777144,1749906747311,154.53,0.00013699,2]
[365777145,1749906764308,-151.0,0.0001601,2]
[365777146,1749906776841,-30.21,0.0001601,2]
[365777147,1749906804313,500.0,0.00024999,120]
[365777148,1749906841322,500.0,0.00025,120]
[365777149,1749906902949,2613.95,0.00015975,2]
[365777151,1749906903842,518.24,0.00014069,2]
[365777153,1749906953269,150.0,0.00025,120]
[365777154,1749906960911,1855.7,0.00025,120]
[365777155,1749906968345,150.0,0.00025,120]
[365777156,1749906986128,5979.66230884,0.00015969,2]
[365777157,1749906986150,10000.0,0.00015969,2]
[365777158,1749906986170,10000.0,0.00015969,2]
[365777159,1749906986192,1963.30769116,0.00015969,2]
[365777161,1749907051685,806.42,0.00015939,2]
[365777162,1749907054726,-152.0,0.00016064,2]
[365777163,1749907061893,-94.02093134,0.00016064,2]
[365777164,1749907092511,201.0,0.00015456,2]
[365777165,1749907121625,212.0,0.00015456,2]
[365777166,1749907151801,215.0,0.00015456,2]
[365777167,1749907159264,700.0,0.00015068,2]
[365777168,1749907173308,176.1,0.0001278,2]
[365777169,1749907175395,4204.23,0.00015975,2]
[365777170,1749907220225,164.56,0.00015972,2]
[365777171,1749907228463,-226.22891106,0.00016024,2]
[365777172,1749907232869,-60.9833902,0.00016024,2]
[365777173,1749907234783,500.0,0.00015068,2]
[365777174,1749907243068,200.0,0.00015754,2]
[365777176,1749907250597,657.38230884,0.00015886,2]
[365777177,1749907250618,6730.24769116,0.00015886,2]
[365777178,1749907287415,-240.58215207,0.00016024,2]
[365777179,1749907292654,-156.91983129,0.00016024,2]
[365777180,1749907297785,-210.76660936,0.00016024,2]
[365777181,1749907300444,-271.64449919,0.00016024,2]
[365777182,1749907305755,-251.99352823,0.00016024,2]
[365777183,1749907308773,-183.47654474,0.00016024,2]
[365777184,1749907310712,-305.82,0.00016024,2]
[365777185,1749907317003,-339.85441548,0.00016024,2]
[365777186,1749907319636,-211.7168459,0.00016024,2]
[365777187,1749907322560,-417.95568379,0.00016024,2]
[365777188,1749907324526,-206.88157774,0.00016024,2]
[365777189,1749907326653,-155.56691141,0.00016024,2]
[365777190,1749907329308,-302.90530983,0.00016024,2]
[365777192,1749907335099,-208.88437849,0.00016024,2]
[365777193,1749907350666,1789.624545,0.00015944,2]
[365777196,1749907406865,297.554208,0.00024999,120]
[365777197,1749907452312,201.0,0.00015175,2]
[365777198,1749907452573,201.0,0.00015757,2]
[365777199,1749907496718,1078.12776384,0.00015923,2]
[365777200,1749907496741,10000.0,0.00015923,2]
[365777201,1749907496761,4649.87839407,0.00015923,2]
[365777203,1749907514444,500.0,0.00015722,2]
[365777204,1749907522632,1000.0,0.00015701,2]
[365777205,1749907542156,208.0,0.00015175,2]
[365777206,1749907542615,326.55004355,0.00024657,120]
[365777207,1749907556954,1200.0,0.00013972,2]